{"text_format":"1","workbook":"xlsx","n_sheets":1,"sheets":["filterHTML"],"not_rendered":{"charts":0,"images":1,"macros":1,"external_links":0,"defined_names":75,"comments":1,"pivot_tables":0},"unopened":[],"bounds":{"document_bytes":16777216,"sheet_cells":100000,"rows_first":2000,"rows_last":500,"rows_between":2000,"halvings":0,"cell_chars":16384,"cell_head_chars":4096},"cells_cut":0,"cells_raw":0,"read":"whole","date_system":"1900"}

{"sheet":"filterHTML","index":0,"n_rows":199,"n_cols":34,"rows_kept":199,"cut":false,"hidden":false,"merged":[]}
[null,null,null,null,null,{"$f":"IF(_xlfn.SEQUENCE(199),\"\")","v":""},null,null,null,null,null,{"$f":"IF(_xlfn.SEQUENCE(199),\"\")","v":""},null,null,null,null,null,null,null,null,null,null,null,null,null,null,null,null,null,null,null,null,null,{"$f":"{\"29 jul 2023\";\"https//techcommunity.microsoft.com/t5/excel/lookup-to-include-formatting-with-its-return-value-non-vba/m-p/3883049#M199322\";\"bo.sinander@powerpage.se\"}","v":"29 jul 2023"}]
[{"$f":"G2:J2","v":"Super"},"Normal","Super","Subscripted",null,"","Super","Normal","Super","Subscripted",null,"",{"$f":"_xlfn.BYROW(range(G2),_xlfn.LAMBDA(_xlpm.a,_xlfn.TEXTJOIN(\"\",,\"<sup>\"&INDEX(_xlpm.a,,1)&\"</sup>\",INDEX(_xlpm.a,,2),\"<sup>\"&INDEX(_xlpm.a,,3)&\"</sup>\",\"<sub>\"&INDEX(_xlpm.a,,4)&\"</sub>\")))","v":"<sup>Super</sup>Normal<sup>Super</sup><sub>Subscripted</sub>"},"SuperNormalSuperSubscripted",null,null,null,null,null,null,null,null,null,null,null,null,null,null,null,null,null,null,null,"https//techcommunity.microsoft.com/t5/excel/lookup-to-include-formatting-with-its-return-value-non-vba/m-p/3883049#M199322"]
[":question_mark:4:right_raised_omission_bracket:24:bed:","SOME",":heavy_dollar_sign:549;:fork_and_knife_with_plate::heavy_multiplication_x::question_mark::receipt::heavy_dollar_sign:43;",":heavy_dollar_sign:394:fork_and_knife_with_plate::heavy_multiplication_x::question_mark:",null,"",{"$f":"replaceWords(A3:D3,\":\" & Table1[Name in text] & \":\",Table1[HTML])","v":"&#65311;4&#11789;24&#128719;"},"SOME","&#128178;549;&#127869;&#10006;&#65311;&#129534;&#128178;43;","&#128178;394&#127869;&#10006;&#65311;",null,"","<sup>&#65311;4&#11789;24&#128719;</sup>SOME<sup>&#128178;549;&#127869;&#10006;&#65311;&#129534;&#128178;43;</sup><sub>&#128178;394&#127869;&#10006;&#65311;</sub>","？4⸍24🛏SOME💲549;🍽✖？🧾💲43;💲394🍽✖？",null,null,null,null,null,null,null,null,null,null,null,null,null,null,null,null,null,null,null,"bo.sinander@powerpage.se"]
["Up","Normal","Up","Down",null,"",{"$f":"replaceWords(A4:D4,\":\" & Table1[Name in text] & \":\",Table1[HTML])","v":"Up"},"Normal","Up","Down",null,"","<sup>Up</sup>Normal<sup>Up</sup><sub>Down</sub>","UpNormalUpDown"]
[null,null,null,null,null,"",null,null,null,null,null,""]
[null,null,null,null,null,"",null,null,null,null,null,""]
[null,null,null,null,null,"","Name in text","Hex Code","Unichar","HTML",null,""]
[null,null,null,null,null,"","airplane","1F6E7",{"$f":"_xlfn.UNICHAR(HEX2DEC(SUBSTITUTE(UPPER(Table1[[#This Row],[Hex Code]]),\"U+\",\"\")))","v":"🛧"},{"$f":"\"&#\" & HEX2DEC(SUBSTITUTE(UPPER(Table1[[#This Row],[Hex Code]]),\"U+\",\"\")) & \";\"","v":"&#128743;"},null,""]
[null,null,null,null,null,"","airplane → ",2708,{"$f":"_xlfn.UNICHAR(HEX2DEC(SUBSTITUTE(UPPER(Table1[[#This Row],[Hex Code]]),\"U+\",\"\")))","v":"✈"},{"$f":"\"&#\" & HEX2DEC(SUBSTITUTE(UPPER(Table1[[#This Row],[Hex Code]]),\"U+\",\"\")) & \";\"","v":"&#9992;"},null,""]
[null,null,null,null,null,"","bed","1F6CF",{"$f":"_xlfn.UNICHAR(HEX2DEC(SUBSTITUTE(UPPER(Table1[[#This Row],[Hex Code]]),\"U+\",\"\")))","v":"🛏"},{"$f":"\"&#\" & HEX2DEC(SUBSTITUTE(UPPER(Table1[[#This Row],[Hex Code]]),\"U+\",\"\")) & \";\"","v":"&#128719;"},null,""]
[null,null,null,null,null,"","bed","u+1f6cf",{"$f":"_xlfn.UNICHAR(HEX2DEC(SUBSTITUTE(UPPER(Table1[[#This Row],[Hex Code]]),\"U+\",\"\")))","v":"🛏"},{"$f":"\"&#\" & HEX2DEC(SUBSTITUTE(UPPER(Table1[[#This Row],[Hex Code]]),\"U+\",\"\")) & \";\"","v":"&#128719;"},null,""]
[null,null,null,null,null,"","document","1f5ce",{"$f":"_xlfn.UNICHAR(HEX2DEC(SUBSTITUTE(UPPER(Table1[[#This Row],[Hex Code]]),\"U+\",\"\")))","v":"🗎"},{"$f":"\"&#\" & HEX2DEC(SUBSTITUTE(UPPER(Table1[[#This Row],[Hex Code]]),\"U+\",\"\")) & \";\"","v":"&#128462;"},null,""]
[null,null,null,null,null,"","fork_and_knife","U+1F374",{"$f":"_xlfn.UNICHAR(HEX2DEC(SUBSTITUTE(UPPER(Table1[[#This Row],[Hex Code]]),\"U+\",\"\")))","v":"🍴"},{"$f":"\"&#\" & HEX2DEC(SUBSTITUTE(UPPER(Table1[[#This Row],[Hex Code]]),\"U+\",\"\")) & \";\"","v":"&#127860;"},null,""]
[null,null,null,null,null,"","fork_and_knife_with_plate","1f37d",{"$f":"_xlfn.UNICHAR(HEX2DEC(SUBSTITUTE(UPPER(Table1[[#This Row],[Hex Code]]),\"U+\",\"\")))","v":"🍽"},{"$f":"\"&#\" & HEX2DEC(SUBSTITUTE(UPPER(Table1[[#This Row],[Hex Code]]),\"U+\",\"\")) & \";\"","v":"&#127869;"},null,""]
[null,null,null,null,null,"","heavy_dollar_sign","1f4b2",{"$f":"_xlfn.UNICHAR(HEX2DEC(SUBSTITUTE(UPPER(Table1[[#This Row],[Hex Code]]),\"U+\",\"\")))","v":"💲"},{"$f":"\"&#\" & HEX2DEC(SUBSTITUTE(UPPER(Table1[[#This Row],[Hex Code]]),\"U+\",\"\")) & \";\"","v":"&#128178;"},null,""]
[null,null,null,null,null,"","heavy_multiplication_x",2716,{"$f":"_xlfn.UNICHAR(HEX2DEC(SUBSTITUTE(UPPER(Table1[[#This Row],[Hex Code]]),\"U+\",\"\")))","v":"✖"},{"$f":"\"&#\" & HEX2DEC(SUBSTITUTE(UPPER(Table1[[#This Row],[Hex Code]]),\"U+\",\"\")) & \";\"","v":"&#10006;"},null,""]
[null,null,null,null,null,"","horse","1f40e",{"$f":"_xlfn.UNICHAR(HEX2DEC(SUBSTITUTE(UPPER(Table1[[#This Row],[Hex Code]]),\"U+\",\"\")))","v":"🐎"},{"$f":"\"&#\" & HEX2DEC(SUBSTITUTE(UPPER(Table1[[#This Row],[Hex Code]]),\"U+\",\"\")) & \";\"","v":"&#128014;"},null,""]
[null,null,null,null,null,"","question_mark","ff1f",{"$f":"_xlfn.UNICHAR(HEX2DEC(SUBSTITUTE(UPPER(Table1[[#This Row],[Hex Code]]),\"U+\",\"\")))","v":"？"},{"$f":"\"&#\" & HEX2DEC(SUBSTITUTE(UPPER(Table1[[#This Row],[Hex Code]]),\"U+\",\"\")) & \";\"","v":"&#65311;"},null,""]
[null,null,null,null,null,"","receipt","1F9FE",{"$f":"_xlfn.UNICHAR(HEX2DEC(SUBSTITUTE(UPPER(Table1[[#This Row],[Hex Code]]),\"U+\",\"\")))","v":"🧾"},{"$f":"\"&#\" & HEX2DEC(SUBSTITUTE(UPPER(Table1[[#This Row],[Hex Code]]),\"U+\",\"\")) & \";\"","v":"&#129534;"},null,""]
[null,null,null,null,null,"","right_raised_omission_bracket","2E0D",{"$f":"_xlfn.UNICHAR(HEX2DEC(SUBSTITUTE(UPPER(Table1[[#This Row],[Hex Code]]),\"U+\",\"\")))","v":"⸍"},{"$f":"\"&#\" & HEX2DEC(SUBSTITUTE(UPPER(Table1[[#This Row],[Hex Code]]),\"U+\",\"\")) & \";\"","v":"&#11789;"},null,""]
[null,null,null,null,null,"","variation_selector-16","fe0f",{"$f":"_xlfn.UNICHAR(HEX2DEC(SUBSTITUTE(UPPER(Table1[[#This Row],[Hex Code]]),\"U+\",\"\")))","v":"️"},{"$f":"\"&#\" & HEX2DEC(SUBSTITUTE(UPPER(Table1[[#This Row],[Hex Code]]),\"U+\",\"\")) & \";\"","v":"&#65039;"},null,""]
[null,null,null,null,null,"",null,null,null,null,null,""]
[null,null,null,null,null,"","Get unicodes - help when unichar is known",null,null,null,null,""]
[null,null,null,null,null,"","Unichar","DEC2HEX",null,null,null,""]
[null,null,null,null,null,"","⸍",{"$f":"DEC2HEX(_xlfn.UNICODE(Table2[[#This Row],[Unichar]]))","v":"2E0D"},null,null,null,""]
[null,null,null,null,null,"","🧾",{"$f":"DEC2HEX(_xlfn.UNICODE(Table2[[#This Row],[Unichar]]))","v":"1F9FE"},null,null,null,""]
[null,null,null,null,null,"","🛧",{"$f":"DEC2HEX(_xlfn.UNICODE(Table2[[#This Row],[Unichar]]))","v":"1F6E7"},null,null,null,""]
[null,null,null,null,null,"",null,null,null,null,null,""]
[null,null,null,null,null,"",null,null,null,null,null,""]
[null,null,null,null,null,"",null,null,null,null,null,""]
[null,null,null,null,null,"",null,null,null,null,null,""]
[null,null,null,null,null,"",null,null,null,null,null,""]
[null,null,null,null,null,"",null,null,null,null,null,""]
[null,null,null,null,null,"",null,null,null,null,null,""]
[null,null,null,null,null,"",null,null,null,null,null,""]
[null,null,null,null,null,"",null,null,null,null,null,""]
[null,null,null,null,null,"",null,null,null,null,null,""]
[null,null,null,null,null,"",null,null,null,null,null,""]
[null,null,null,null,null,"",null,null,null,null,null,""]
[null,null,null,null,null,"",null,null,null,null,null,""]
[null,null,null,null,null,"",null,null,null,null,null,""]
[null,null,null,null,null,"",null,null,null,null,null,""]
[null,null,null,null,null,"",null,null,null,null,null,""]
[null,null,null,null,null,"",null,null,null,null,null,""]
[null,null,null,null,null,"",null,null,null,null,null,""]
[null,null,null,null,null,"",null,null,null,null,null,""]
[null,null,null,null,null,"",null,null,null,null,null,""]
[null,null,null,null,null,"",null,null,null,null,null,""]
[null,null,null,null,null,"",null,null,null,null,null,""]
[null,null,null,null,null,"",null,null,null,null,null,""]
[null,null,null,null,null,"",null,null,null,null,null,""]
[null,null,null,null,null,"",null,null,null,null,null,""]
[null,null,null,null,null,"",null,null,null,null,null,""]
[null,null,null,null,null,"",null,null,null,null,null,""]
[null,null,null,null,null,"",null,null,null,null,null,""]
[null,null,null,null,null,"",null,null,null,null,null,""]
[null,null,null,null,null,"",null,null,null,null,null,""]
[null,null,null,null,null,"",null,null,null,null,null,""]
[null,null,null,null,null,"",null,null,null,null,null,""]
[null,null,null,null,null,"",null,null,null,null,null,""]
[null,null,null,null,null,"",null,null,null,null,null,""]
[null,null,null,null,null,"",null,null,null,null,null,""]
[null,null,null,null,null,"",null,null,null,null,null,""]
[null,null,null,null,null,"",null,null,null,null,null,""]
[null,null,null,null,null,"",null,null,null,null,null,""]
[null,null,null,null,null,"",null,null,null,null,null,""]
[null,null,null,null,null,"",null,null,null,null,null,""]
[null,null,null,null,null,"",null,null,null,null,null,""]
[null,null,null,null,null,"",null,null,null,null,null,""]
[null,null,null,null,null,"",null,null,null,null,null,""]
[null,null,null,null,null,"",null,null,null,null,null,""]
[null,null,null,null,null,"",null,null,null,null,null,""]
[null,null,null,null,null,"",null,null,null,null,null,""]
[null,null,null,null,null,"",null,null,null,null,null,""]
[null,null,null,null,null,"",null,null,null,null,null,""]
[null,null,null,null,null,"",null,null,null,null,null,""]
[null,null,null,null,null,"",null,null,null,null,null,""]
[null,null,null,null,null,"",null,null,null,null,null,""]
[null,null,null,null,null,"",null,null,null,null,null,""]
[null,null,null,null,null,"",null,null,null,null,null,""]
[null,null,null,null,null,"",null,null,null,null,null,""]
[null,null,null,null,null,"",null,null,null,null,null,""]
[null,null,null,null,null,"",null,null,null,null,null,""]
[null,null,null,null,null,"",null,null,null,null,null,""]
[null,null,null,null,null,"",null,null,null,null,null,""]
[null,null,null,null,null,"",null,null,null,null,null,""]
[null,null,null,null,null,"",null,null,null,null,null,""]
[null,null,null,null,null,"",null,null,null,null,null,""]
[null,null,null,null,null,"",null,null,null,null,null,""]
[null,null,null,null,null,"",null,null,null,null,null,""]
[null,null,null,null,null,"",null,null,null,null,null,""]
[null,null,null,null,null,"",null,null,null,null,null,""]
[null,null,null,null,null,"",null,null,null,null,null,""]
[null,null,null,null,null,"",null,null,null,null,null,""]
[null,null,null,null,null,"",null,null,null,null,null,""]
[null,null,null,null,null,"",null,null,null,null,null,""]
[null,null,null,null,null,"",null,null,null,null,null,""]
[null,null,null,null,null,"",null,null,null,null,null,""]
[null,null,null,null,null,"",null,null,null,null,null,""]
[null,null,null,null,null,"",null,null,null,null,null,""]
[null,null,null,null,null,"",null,null,null,null,null,""]
[null,null,null,null,null,"",null,null,null,null,null,""]
[null,null,null,null,null,"",null,null,null,null,null,""]
[null,null,null,null,null,"",null,null,null,null,null,""]
[null,null,null,null,null,"",null,null,null,null,null,""]
[null,null,null,null,null,"",null,null,null,null,null,""]
[null,null,null,null,null,"",null,null,null,null,null,""]
[null,null,null,null,null,"",null,null,null,null,null,""]
[null,null,null,null,null,"",null,null,null,null,null,""]
[null,null,null,null,null,"",null,null,null,null,null,""]
[null,null,null,null,null,"",null,null,null,null,null,""]
[null,null,null,null,null,"",null,null,null,null,null,""]
[null,null,null,null,null,"",null,null,null,null,null,""]
[null,null,null,null,null,"",null,null,null,null,null,""]
[null,null,null,null,null,"",null,null,null,null,null,""]
[null,null,null,null,null,"",null,null,null,null,null,""]
[null,null,null,null,null,"",null,null,null,null,null,""]
[null,null,null,null,null,"",null,null,null,null,null,""]
[null,null,null,null,null,"",null,null,null,null,null,""]
[null,null,null,null,null,"",null,null,null,null,null,""]
[null,null,null,null,null,"",null,null,null,null,null,""]
[null,null,null,null,null,"",null,null,null,null,null,""]
[null,null,null,null,null,"",null,null,null,null,null,""]
[null,null,null,null,null,"",null,null,null,null,null,""]
[null,null,null,null,null,"",null,null,null,null,null,""]
[null,null,null,null,null,"",null,null,null,null,null,""]
[null,null,null,null,null,"",null,null,null,null,null,""]
[null,null,null,null,null,"",null,null,null,null,null,""]
[null,null,null,null,null,"",null,null,null,null,null,""]
[null,null,null,null,null,"",null,null,null,null,null,""]
[null,null,null,null,null,"",null,null,null,null,null,""]
[null,null,null,null,null,"",null,null,null,null,null,""]
[null,null,null,null,null,"",null,null,null,null,null,""]
[null,null,null,null,null,"",null,null,null,null,null,""]
[null,null,null,null,null,"",null,null,null,null,null,""]
[null,null,null,null,null,"",null,null,null,null,null,""]
[null,null,null,null,null,"",null,null,null,null,null,""]
[null,null,null,null,null,"",null,null,null,null,null,""]
[null,null,null,null,null,"",null,null,null,null,null,""]
[null,null,null,null,null,"",null,null,null,null,null,""]
[null,null,null,null,null,"",null,null,null,null,null,""]
[null,null,null,null,null,"",null,null,null,null,null,""]
[null,null,null,null,null,"",null,null,null,null,null,""]
[null,null,null,null,null,"",null,null,null,null,null,""]
[null,null,null,null,null,"",null,null,null,null,null,""]
[null,null,null,null,null,"",null,null,null,null,null,""]
[null,null,null,null,null,"",null,null,null,null,null,""]
[null,null,null,null,null,"",null,null,null,null,null,""]
[null,null,null,null,null,"",null,null,null,null,null,""]
[null,null,null,null,null,"",null,null,null,null,null,""]
[null,null,null,null,null,"",null,null,null,null,null,""]
[null,null,null,null,null,"",null,null,null,null,null,""]
[null,null,null,null,null,"",null,null,null,null,null,""]
[null,null,null,null,null,"",null,null,null,null,null,""]
[null,null,null,null,null,"",null,null,null,null,null,""]
[null,null,null,null,null,"",null,null,null,null,null,""]
[null,null,null,null,null,"",null,null,null,null,null,""]
[null,null,null,null,null,"",null,null,null,null,null,""]
[null,null,null,null,null,"",null,null,null,null,null,""]
[null,null,null,null,null,"",null,null,null,null,null,""]
[null,null,null,null,null,"",null,null,null,null,null,""]
[null,null,null,null,null,"",null,null,null,null,null,""]
[null,null,null,null,null,"",null,null,null,null,null,""]
[null,null,null,null,null,"",null,null,null,null,null,""]
[null,null,null,null,null,"",null,null,null,null,null,""]
[null,null,null,null,null,"",null,null,null,null,null,""]
[null,null,null,null,null,"",null,null,null,null,null,""]
[null,null,null,null,null,"",null,null,null,null,null,""]
[null,null,null,null,null,"",null,null,null,null,null,""]
[null,null,null,null,null,"",null,null,null,null,null,""]
[null,null,null,null,null,"",null,null,null,null,null,""]
[null,null,null,null,null,"",null,null,null,null,null,""]
[null,null,null,null,null,"",null,null,null,null,null,""]
[null,null,null,null,null,"",null,null,null,null,null,""]
[null,null,null,null,null,"",null,null,null,null,null,""]
[null,null,null,null,null,"",null,null,null,null,null,""]
[null,null,null,null,null,"",null,null,null,null,null,""]
[null,null,null,null,null,"",null,null,null,null,null,""]
[null,null,null,null,null,"",null,null,null,null,null,""]
[null,null,null,null,null,"",null,null,null,null,null,""]
[null,null,null,null,null,"",null,null,null,null,null,""]
[null,null,null,null,null,"",null,null,null,null,null,""]
[null,null,null,null,null,"",null,null,null,null,null,""]
[null,null,null,null,null,"",null,null,null,null,null,""]
[null,null,null,null,null,"",null,null,null,null,null,""]
[null,null,null,null,null,"",null,null,null,null,null,""]
[null,null,null,null,null,"",null,null,null,null,null,""]
[null,null,null,null,null,"",null,null,null,null,null,""]
[null,null,null,null,null,"",null,null,null,null,null,""]
[null,null,null,null,null,"",null,null,null,null,null,""]
[null,null,null,null,null,"",null,null,null,null,null,""]
[null,null,null,null,null,"",null,null,null,null,null,""]
[null,null,null,null,null,"",null,null,null,null,null,""]
[null,null,null,null,null,"",null,null,null,null,null,""]
[null,null,null,null,null,"",null,null,null,null,null,""]
[null,null,null,null,null,"",null,null,null,null,null,""]
[null,null,null,null,null,"",null,null,null,null,null,""]
[null,null,null,null,null,"",null,null,null,null,null,""]
[null,null,null,null,null,"",null,null,null,null,null,""]